[Event "Israeli Championship 2022"]
[Site "Yosiah Arad"]
[Date "2022.12.05"]
[Round "1.16"]
[White "Shimshovich, Asaf"]
[Black "Zemach, Nadav"]
[Result "0-1"]
[ECO "D11"]
[WhiteElo "1941"]
[BlackElo "2402"]
[Annotator "TA"]
[PlyCount "144"]
[EventDate "2022.12.05"]
[EventType "swiss"]
[EventCountry "ISR"]
[SourceTitle "playchess.com"]
[Source "ChessBase"]
[SourceQuality "1"]
[TimeControl "40/5400+30:1800+30"]

{[%evp 9,144,16,8,19,13,0,-1,-35,16,0,0,0,0,0,0,-58,-17,-20,-24,-57,-41,-79,-12,-8,-17,-21,-17,-29,-18,-62,-58,-62,-54,-60,-51,-88,-47,-72,-84,-70,-52,-90,-79,-90,-91,-101,-78,-101,-94,-87,-81,-201,-100,-175,-174,-136,-89,-125,-90,-55,-62,-93,-87,-99,-107,-166,-157,-180,-173,-240,-204,-384,-377,-450,-448,-455,-450,-449,-430,-450,-299,-397,-297,-306,-299,-332,-252,-229,-224,-210,-45,-189,-232,-412,-403,-558,-557,-629,-648,-608,-629,-700,-633,-10514,-8007,-6550,-7457,-4185,-2879,-29957,-29958,-29977,-29978,-29978,-29969,-29977,-29978,-29978,-29979,-29980,-29979,-29977,-29973,-29972,-29973,-29981,-29982,-29982,-29983,-29983,-29984,-29984,-29985,-29987,-29988,-29988,-29989]} 1. d4 {[%emt 0:00:06]} d5 {[%emt 0:00:43]} 2. c4 {[%emt 0:00:13]} c6 {[%emt 0:00:41]} 3. Nf3 {[%emt 0:00:15]} Nf6 {[%emt 0:00:06]} 4. g3 {[%emt 0:00:30]} Bg4 {[%emt 0:01:03]} 5. Bg2 {[%emt 0:02:04]} e6 {[%emt 0:00:44]} 6. Qb3 {[%emt 0:02:23] D11: Slav Defence: 3 Nf3 sidelines and 3...Nf6 4 e3 Bg4.} Qb6 {[%emt 0:01:16]} 7. c5 {[%emt 0:02:41]} Qa6 {[%emt 0:02:04]} 8. h3 {[%emt 0:02:02] Prevents b6. The position is equal.} Bh5 {[%emt 0:02:22] [#]} (8... Bxf3 $15 9. Qxf3 b6) 9. g4 $146 {[%emt 0:00:23]} ({Predecessor:} 9. Nc3 b6 10. cxb6 axb6 11. g4 Bg6 12. Ne5 Nfd7 13. Nxg6 hxg6 14. O-O Nf6 15. g5 {0-1 (40) Truskavetsky,A (2399)-Makhmutov,R (2442) Sochi 2020}) 9... Bg6 {[%emt 0:01:32]} 10. Ne5 {[%emt 0:01:11]} Nbd7 {[%emt 0:01:23] And now ...Nxe5 would win.} 11. Nxg6 {[%emt 0:01:16]} hxg6 {[%emt 0:00:11]} 12. Bf4 {[%emt 0:05:10] Against e5} ({White should try} 12. Qc2 $11) 12... b6 {[%emt 0:05:11]} (12... e5 $5 13. dxe5 Nxc5 $15) 13. cxb6 $1 {[%emt 0:01:09]} axb6 {[%emt 0:00:19]} 14. Nd2 {[%emt 0:12:41]} Be7 {[%emt 0:03:19]} (14... c5 $5 {[%cal Rc5d4]}) 15. e4 {[%emt 0:13:11]} Rc8 {[%emt 0:04:58]} (15... O-O $17) 16. e5 $11 {[%emt 0:02:39]} Nh7 {[%emt 0:02:20]} 17. Bf1 {[%emt 0:03:55]} Qa5 {[%emt 0:03:09]} 18. a3 {[%emt 0:16:32]} c5 {[%emt 0:07:52]} 19. Rc1 {[%emt 0:01:22]} c4 {[%emt 0:04:09]} 20. Qc3 {[%emt 0:03:25]} Qxc3 {[%emt 0:02:07]} 21. Rxc3 {[%emt 0:00:06]} b5 {[%emt 0:01:00]} 22. Be2 {[%emt 0:06:55]} Nb6 {[%emt 0:01:51]} 23. O-O {[%emt 0:02:32]} Nf8 {[%emt 0:02:40][%cal Bh7f8,Bf8d7,Bd7b8,Bb8c6][%mdl 32]} 24. Kg2 Nfd7 {[%emt 0:00:30]} 25. Ra1 Nb8 {[%emt 0:00:30]} 26. Nf3 Nc6 {[%emt 0:00:30]} 27. Rc2 Kd7 {[%emt 0:00:30]} 28. Bd2 Ra8 {[%emt 0:00:30]} 29. Rcc1 Ra7 {[%emt 0:00:30]} 30. Bc3 (30. Bd1 $17) 30... Rb8 {[%emt 0:00:30]} (30... Na4 $19 {...Nxc3 is the strong threat.} 31. Rab1 Nxc3 32. Rxc3 Rb8) 31. Bd1 (31. Bd2 $17 {might work better.}) 31... Na4 $19 {[%emt 0:00:30]} 32. Bxa4 Rxa4 {[%emt 0:00:30]} (32... bxa4 $142 33. h4 Rab7) 33. Ne1 f6 {[%emt 0:00:30] Black is much more active. The white rooks are badly placed.} 34. f4 g5 {[%emt 0:00:30]} 35. exf6 Bxf6 {[%emt 0:00:30]} 36. Nf3 gxf4 {[%emt 0:00:30]} 37. g5 (37. h4 $17) 37... Be7 {[%emt 0:00:30]} 38. Re1 Bd6 {[%emt 0:00:30]} 39. Bd2 (39. h4 {keeps fighting.}) 39... Rf8 {[%emt 0:00:30]} 40. Re2 $2 (40. h4) 40... b4 {[%emt 0:00:30]} 41. Rb1 bxa3 {[%emt 0:30:30]} 42. bxa3 Rb8 {[%emt 0:00:30] Against Rb7+} 43. Rxb8 Bxb8 {[%emt 0:00:30]} 44. Bc1 Bd6 {[%emt 0:00:30]} 45. h4 g6 {[%emt 0:00:30]} (45... Bxa3 46. Ra2 Bxc1 47. Rxa4 $15) 46. Rb2 Ra7 {[%emt 0:00:30] Prevents Rb7+.} (46... Bxa3 47. Ra2 Bxc1 48. Rxa4 $19) 47. Rb5 Kc8 {[%emt 0:00:30]} 48. Kh3 Bxa3 {[%emt 0:00:30]} 49. Bxf4 c3 $2 {[%emt 0:00:30]} (49... Kd7 $19 {White must now prevent ...Bd6.} 50. Kg4 Bd6) 50. Rb6 {White does not recover from this.} (50. h5 $1 $15 c2 51. hxg6) 50... Kd7 {[%emt 0:00:30]} 51. Rb3 $2 (51. h5 gxh5 52. Rb3) 51... c2 {[%emt 0:00:30]} 52. Rc3 Bb4 {[%emt 0:00:30]} 53. Rxc2 Ra3 $1 {[%emt 0:00:30][%csl LRd4,LRf3]} 54. Rf2 Nxd4 {[%emt 0:00:30]} 55. Kg4 Nxf3 {[%emt 0:00:30]} 56. Rxf3 Rxf3 {[%emt 0:00:30]} 57. Kxf3 {[%mdl 4096] Endgame KB-KB} Bc3 {[%emt 0:00:30] Threatens to win with ...e5.} 58. Bg3 e5 {[%emt 0:00:30][%cal Be6e5,Be5e4,Be4e3,Be3e2][%mdl 32]} 59. Kg4 Ke6 {[%emt 0:00:30] Black mates.} 60. h5 gxh5+ {[%emt 0:00:30]} 61. Kxh5 Kf5 {[%emt 0:00:30]} 62. g6 {[#]} e4 $1 {[%emt 0:00:30]} 63. Kh6 e3 {[%emt 0:00:30]} 64. Be1 Be5 {[%emt 0:00:30]} ({And not} 64... Bxe1 65. g7 e2 66. g8=Q $11) 65. Bg3 Bf6 {[%emt 0:00:30]} ({Not} 65... Bxg3 66. g7 e2 67. g8=Q $15) 66. Bh4 e2 {[%emt 0:00:30]} (66... Bxh4 67. g7 e2 68. g8=Q $15) 67. g7 Bxg7+ {[%emt 0:00:30]} ({Weaker is} 67... Bxh4 68. g8=Q e1=Q 69. Qxd5+ Kg4 70. Kh7 $15) 68. Kxg7 d4 {[%emt 0:00:30][%cal Bd5d4,Bd4d3][%mdl 32]} 69. Be1 Ke4 {[%emt 0:00:30]} 70. Kf6 {[#]} Ke3 $1 {[%emt 0:00:30]} 71. Bb4 d3 {[%emt 0:00:30]} 72. Bc5+ Kd2 {[%emt 0:00:30] Weighted Error Value: White=0.57/Black=0.22 (precise)} 0-1

[Event "Israeli Championship 2022"]
[Site "Yosiah Arad"]
[Date "2022.12.06"]
[Round "2.1"]
[White "Gorshtein, Ido"]
[Black "Nabaty, Tamir"]
[Result "1-0"]
[ECO "D11"]
[WhiteElo "2469"]
[BlackElo "2629"]
[Annotator "TA"]
[PlyCount "117"]
[EventDate "2022.12.05"]
[EventType "swiss"]
[EventCountry "ISR"]
[SourceTitle "playchess.com"]
[Source "ChessBase"]
[SourceQuality "1"]
[TimeControl "40/5400+30:1800+30"]

{[%evp 14,117,39,35,41,14,32,7,11,-7,0,-9,-13,-48,-45,-37,-28,-28,0,0,0,-26,20,16,18,35,116,72,316,131,158,142,356,348,350,319,341,330,391,389,396,375,373,428,427,385,471,436,472,442,475,464,495,495,495,459,518,506,507,448,502,485,550,536,1018,935,2186,2030,2059,2128,2488,2593,2303,2137,29971,29972,29970,29970,29975,29975,29976,29977,29979,29980,29980,29978,29978,29979,29980,29979,29979,29980,29980,29978,29978,29979,29981,29982,29982,29983,29983,29984,29986,29987,29987,29988]} 1. c4 {[%emt 0:00:02]} e6 {[%emt 0:01:46]} 2. Nf3 {[%emt 0:00:12]} d5 {[%emt 0:00:11]} 3. d4 {[%emt 0:00:02]} dxc4 {[%emt 0:00:05]} 4. e3 {[%emt 0:00:06]} b5 {[%emt 0:00:03]} 5. a4 {[%emt 0:00:07]} c6 {[%emt 0:00:05]} 6. b3 {[%emt 0:00:07]} Bb4+ {[%emt 0:01:38]} 7. Bd2 {[%emt 0:00:11]} Bxd2+ {[%emt 0:00:15]} 8. Nfxd2 {[%emt 0:01:21][%cal Bf3d2,Bd2c4,Bc4d6,Bd6e4][%mdl 32]} Ne7 {[%emt 0:00:16][%cal Oe6e5] D11: Slav Defence: 3 Nf3 sidelines and 3...Nf6 4 e3 Bg4.} 9. bxc4 {[%emt 0:06:40]} b4 {[%emt 0:00:07][%cal Oc6c5]} 10. c5 {[%emt 0:00:10]} O-O {[%emt 0:00:57][%cal Oe6e5] The position is equal.} 11. Nc4 {[%emt 0:04:18] Inhibits e5.} Nd7 {[%emt 0:00:42][%cal Oe6e5] [#]} 12. Nbd2 $146 {[%emt 0:11:25]} ({Predecessor:} 12. f4 Ba6 13. Nbd2 Rb8 14. Qb3 Nf6 15. Ne5 Bxf1 16. Rxf1 Nfd5 17. Ndc4 Nc3 18. Nd6 Ned5 19. g3 Nxe3 20. Nxc6 Qc7 {½-½ (20) Postny,E (2617)-Khenkin,I (2546) Germany 2018}) 12... e5 {[%emt 0:02:43] Threatening ...exd4.} 13. Nd6 {[%emt 0:08:04]} exd4 {[%emt 0:02:31]} 14. exd4 {[%emt 0:02:33]} Nd5 {[%emt 0:10:43]} 15. Bc4 {[%emt 0:07:46]} Qe7+ {[%emt 0:07:09]} (15... N7b6 $5 {[%cal Rb6c4]}) 16. Qe2 {[%emt 0:02:32]} Qf6 {[%emt 0:03:12] ...Nxc5 is the strong threat.} 17. Nb3 {[%emt 0:16:08] [#]} N7b6 $1 {[%emt 0:20:57]} 18. Ne4 $11 {[%emt 0:09:00]} Qg6 {[%emt 0:00:09]} 19. cxb6 {[%emt 0:01:09][%cal Bc5b6,Bb6b7][%mdl 32] Threatens to win with b7!} Nf4 {[%emt 0:01:54] Inhibits b7.} (19... f5 $1 $14) 20. Qf3 {[%emt 0:00:34]} (20. b7 {feels hotter.} Bxb7 21. Qf3 Nxg2+ 22. Kf1) 20... Re8 $2 {[%emt 0:04:02] [#]} (20... Nxg2+ $16 {was worth a try.} 21. Kd2 (21. Kf1 Nh4 $14) 21... Nh4) 21. O-O {[%emt 0:04:19]} Rxe4 $16 {[%emt 0:02:59]} 22. Rae1 $36 {[%emt 0:02:02][%mdl 2048] White has strong initiative.} Bf5 {[%emt 0:02:06] [#] Black cannot hold the game after this.} (22... Nh3+ $16 23. Kh1 Ng5 24. Rxe4 Qxe4) 23. b7 $1 $18 {[%emt 0:06:10]} Rf8 {[%emt 0:06:10]} 24. Qg3 {[%emt 0:03:04]} Qd6 {[%emt 0:10:15]} 25. Re3 {[%emt 0:00:08] aiming for Rfe1.} Rxe3 {[%emt 0:01:02]} 26. fxe3 {[%emt 0:01:56] The board is on fire.} Be6 {[%emt 0:00:06]} 27. Qxf4 {[%emt 0:00:27]} Qxf4 {[%emt 0:00:51]} 28. Rxf4 {[%emt 0:00:02] Strongly threatening Bxe6.} (28. exf4 Bxc4 29. Rb1 Rb8 $16) 28... Bxc4 {[%emt 0:00:06][%mdl 4096] Endgame KRB-KRN} 29. Na5 {[%emt 0:00:05][%csl LRc4,LRc6]} Ba6 {[%emt 0:00:53]} 30. Rf2 {[%emt 0:00:25]} ({Weaker is} 30. Nxc6 Bxb7 31. d5 (31. Nxa7 Rb8 $15) (31. Nxb4 Rc8 $14) 31... a5 $14) 30... Rb8 {[%emt 0:04:43]} 31. Rb2 {[%emt 0:00:14]} ({Less strong is} 31. Nxc6 Rxb7 32. Rb2 b3 $14) 31... Kf8 {[%emt 0:00:10]} (31... Bxb7 $2 32. Rxb4 Kf8 33. Rxb7 $18) 32. Rxb4 {[%emt 0:00:41]} ({Not} 32. Nxc6 Rxb7 33. Rxb4 Rxb4 34. Nxb4 Bb7 $16) 32... Ke8 {[%emt 0:00:02]} 33. Nxc6 {[%emt 0:00:50]} Rxb7 {[%emt 0:00:04]} 34. Rxb7 {[%emt 0:00:06]} Bxb7 {[%emt 0:00:03]} 35. Nxa7 {[%emt 0:00:05] KB-KN} Kd7 {[%emt 0:00:32]} 36. Nb5 {[%emt 0:00:12]} Kc6 {[%emt 0:00:52]} 37. Kf2 {[%emt 0:01:50]} f5 {[%emt 0:00:21]} 38. h3 {[%emt 0:02:07]} g5 {[%emt 0:01:18]} 39. g4 {[%emt 0:00:54]} fxg4 {[%emt 0:01:36]} 40. hxg4 {[%emt 0:00:03]} Kb6 {[%emt 0:00:14]} 41. Nd6 {[%emt 0:30:37]} Bd5 {[%emt 0:30:06] Inhibits a5+.} 42. e4 {[%emt 0:05:36]} Bb3 {[%emt 0:00:48]} 43. d5 {[%emt 0:00:36]} Bxa4 {[%emt 0:01:46]} 44. Nf7 {[%emt 0:00:22] White mates.} Kc5 {[%emt 0:02:39]} 45. Ke3 {[%emt 0:02:06]} Bd1 {[%emt 0:05:35]} 46. Nxg5 {[%emt 0:00:29]} Bxg4 {[%emt 0:00:39]} 47. Nxh7 {[%emt 0:00:14]} Bc8 {[%emt 0:07:50]} 48. Nf6 {[%emt 0:03:21]} Bh3 {[%emt 0:00:00]} 49. Nh5 {[%emt 0:00:00]} Bc8 {[%emt 0:00:00]} 50. Nf4 {[%emt 0:00:00]} Kc4 {[%emt 0:00:00]} 51. Nd3 {[%emt 0:00:00]} Bh3 {[%emt 0:00:00]} 52. d6 {[%emt 0:00:00]} Kb5 {[%emt 0:00:00]} 53. Kd4 {[%emt 0:00:00]} Kc6 {[%emt 0:00:00]} 54. e5 {[%emt 0:00:00][%cal Be4e5,Be5e6][%mdl 32]} Bg4 {[%emt 0:00:00]} 55. Nb4+ {[%emt 0:00:00]} Kd7 {[%emt 0:00:00]} 56. Kc5 {[%emt 0:00:00]} Ke6 {[%emt 0:00:00]} 57. Nc6 {[%emt 0:00:00]} Kd7 {[%emt 0:00:00]} 58. Nd4 {[%emt 0:00:00]} Bh3 {[%emt 0:00:00]} 59. e6+ {[%emt 0:00:00] Weighted Error Value: White=0.20 (precise) /Black=0.38} 1-0

[Event "Israeli Championship 2022"]
[Site "Yosiah Arad"]
[Date "2022.12.06"]
[Round "2.2"]
[White "Postny, Evgeny"]
[Black "Dvoirys, Semen I."]
[Result "0-1"]
[ECO "E73"]
[WhiteElo "2588"]
[BlackElo "2461"]
[Annotator "TA"]
[PlyCount "150"]
[EventDate "2022.12.05"]
[EventType "swiss"]
[EventCountry "ISR"]
[SourceTitle "playchess.com"]
[Source "ChessBase"]
[SourceQuality "1"]
[TimeControl "40/5400+30:1800+30"]

{[%evp 14,150,6,0,7,0,0,0,5,14,10,-20,-25,-12,-14,-11,-21,-36,-24,-26,-12,-11,-19,-22,-10,-19,0,0,0,-157,-153,-156,-163,-245,-250,-245,-245,-337,-341,-338,-295,-316,-274,-270,-275,-276,-275,-265,-197,-180,-159,-152,-137,-137,-137,-192,-170,-197,-198,-198,-195,-262,-226,-266,-266,-268,-262,-262,-259,-260,-226,-233,-233,-207,-208,-350,-323,-370,-364,-354,-329,-380,-374,-384,-378,-377,-376,-370,-370,-346,-284,-411,-284,-382,-370,-377,-324,-413,-413,-413,-413,-413,-413,-413,-413,-406,-405,-454,-454,-397,-410,-454,-451,-422,-398,-453,-341,-549,-556,-547,-541,-608,-554,-613,-620,-6625,-6454,-29965,-29966,-29966,-29968,-29969,-29969,-29974,-29975,-29975,-29975,-29974,-12359]} 1. d4 {[%emt 0:00:06][%cal Bd2d4,Bd4d5][%mdl 32]} Nf6 {[%emt 0:00:08]} 2. c4 {[%emt 0:00:07]} g6 {[%emt 0:00:14]} 3. h4 {[%emt 0:00:15]} c5 {[%emt 0:01:25]} 4. d5 {[%emt 0:00:13]} d6 {[%emt 0:00:07]} 5. Nc3 {[%emt 0:00:16]} Bg7 {[%emt 0:00:13]} 6. e4 {[%emt 0:00:17]} O-O {[%emt 0:04:00][%cal Bh8f8,Bf8e8,Be8e4][%mdl 32]} 7. Be2 {[%emt 0:00:22]} e6 {[%emt 0:00:14]} 8. h5 {[%emt 0:00:40]} exd5 {[%emt 0:00:09] E73: King's Indian: Averbakh Variation without 6...c5.} 9. exd5 {[%emt 0:00:08]} Re8 {[%emt 0:00:27]} 10. Kf1 {[%emt 0:00:54]} Nbd7 {[%emt 0:01:15] The position is equal.} 11. h6 {[%emt 0:15:06]} Bh8 {[%emt 0:02:09] [#]} 12. Nf3 $146 {[%emt 0:00:20]} ({Predecessor:} 12. Bg5 Qb6 13. b3 Ne4 14. Nxe4 Rxe4 15. Nf3 Ne5 16. Rc1 Bf5 17. Kg1 Bg4 18. Qc2 {½-½ (61) Dardha,D (2555)-Van Roon,S (2280) Maastricht 2022}) 12... Ne4 {[%emt 0:01:17]} (12... Ng4 {seems wilder.} 13. Bg5 f6 14. Bd2 f5) 13. Nxe4 {[%emt 0:00:21]} Rxe4 {[%emt 0:00:05]} 14. Qc2 {[%emt 0:09:27]} Re8 {[%emt 0:00:58]} 15. Bd2 {[%emt 0:02:33]} Ne5 {[%emt 0:12:17]} 16. Bc3 {[%emt 0:03:20]} Bg4 {[%emt 0:03:40]} (16... Nxf3 {looks sharper.} 17. Bxf3 Bf5 18. Qd2 Be5) 17. Nxe5 {[%emt 0:22:23]} Bxe2+ {[%emt 0:00:07]} 18. Qxe2 {[%emt 0:00:07][%cal Oe5f7] Black must now prevent Nxf7!} Bxe5 {[%emt 0:00:04]} 19. Qf3 {[%emt 0:01:05]} f5 {[%emt 0:12:33]} (19... Qg5 {feels hotter.} 20. g3 Bxc3 21. Qxc3 Qe5) 20. Re1 {[%emt 0:22:35]} Qf6 {[%emt 0:00:15]} 21. Rxe5 $2 {[%emt 0:00:38] White is now going downhill.} dxe5 $17 {[%emt 0:10:20]} 22. g3 {[%emt 0:00:14]} Qa6 {[%emt 0:04:56]} 23. Qe2 {[%emt 0:08:30]} (23. b3 {might work better.}) 23... Qxa2 $19 {[%emt 0:00:27][%cal Ob7b5]} 24. Kg2 {[%emt 0:02:27]} b5 {[%emt 0:07:51][%cal Bb7b5,Bb5c4][%mdl 32]} 25. Bxe5 {[%emt 0:00:41]} Qxc4 {[%emt 0:01:38]} 26. Qxc4 {[%emt 0:00:06]} bxc4 {[%emt 0:00:04][%mdl 4096] Endgame KRR-KRB} 27. f4 {[%emt 0:00:05]} Rad8 {[%emt 0:02:10]} 28. Ra1 {[%emt 0:01:37]} Kf7 {[%emt 0:06:12]} (28... Rxd5 29. Rxa7 Re6 30. Rg7+ Kf8 31. Rxh7 Rd2+ 32. Kh3 $11) 29. d6 {[%emt 0:04:01]} Rd7 {[%emt 0:00:13]} 30. Rc1 {[%emt 0:00:53]} g5 {[%emt 0:05:58]} 31. Rxc4 {[%emt 0:00:07]} Kg6 {[%emt 0:00:14]} 32. Rxc5 {[%emt 0:00:45]} Kxh6 {[%emt 0:00:11]} 33. fxg5+ {[%emt 0:02:35]} Kxg5 {[%emt 0:00:37]} 34. Kh3 {[%emt 0:01:36]} (34. Kf3 $17) 34... Kg6 {[%emt 0:01:33]} 35. Kh4 {[%emt 0:01:38]} Rb8 {[%emt 0:03:03]} 36. Kh3 {[%emt 0:00:39]} Kf7 {[%emt 0:01:44]} 37. Rc2 {[%emt 0:00:41]} (37. Bc3 {was necessary.}) 37... Ke6 {[%emt 0:00:28]} 38. Re2 {[%emt 0:00:48]} Rb4 {[%emt 0:01:40]} 39. Bf4+ {[%emt 0:00:25]} Re4 {[%emt 0:00:10]} 40. Rc2 {[%emt 0:00:25]} Rb7 {[%emt 0:05:20]} 41. Kh4 {[%emt 0:07:27]} Reb4 {[%emt 0:06:23]} 42. Re2+ {[%emt 0:00:22]} Kd7 {[%emt 0:00:16]} 43. Kg5 {[%emt 0:12:48]} Rxb2 {[%emt 0:00:37]} 44. Re7+ {[%emt 0:00:43]} (44. Re3 $142) 44... Kc6 {[%emt 0:00:06]} 45. Re8 {[%emt 0:00:08] [#]} Rf7 {[%emt 0:03:51]} 46. Rc8+ {[%emt 0:02:00]} Kd5 {[%emt 0:03:49] Threatens to win with ...Rg7+.} 47. Re8 {[%emt 0:00:34]} Rbb7 {[%emt 0:01:03]} 48. Re1 {[%emt 0:03:11]} Rg7+ {[%emt 0:01:53]} 49. Kh4 {[%emt 0:00:35]} Kc6 {[%emt 0:03:29]} 50. Rc1+ {[%emt 0:00:28]} Kd7 {[%emt 0:00:15]} 51. Rc5 {[%emt 0:00:18]} Ke6 {[%emt 0:00:44] Hoping for ...Rg4+.} 52. Ra5 {[%emt 0:01:13]} (52. Kh3 {was called for.}) 52... Rb1 {[%emt 0:02:21][%cal Rb1h1]} 53. Re5+ {[%emt 0:00:37]} Kd7 {[%emt 0:00:19][%cal Rb1h1]} (53... Kxd6 54. Re1+ (54. Rxf5+ $2 Kc6 $19) 54... Kc6 55. Rxb1 $16) 54. Kh3 {[%emt 0:00:07]} Rf7 {[%emt 0:00:41]} ({Less strong is} 54... Kxd6 55. Rb5+ (55. Rxf5+ $2 Kc6 $19) 55... Kc6 56. Rxb1 $16) 55. Kh4 {[%emt 0:01:03]} a6 {[%emt 0:01:26][%cal Ba7a6,Ba6a5][%mdl 32]} ({Weaker is} 55... Kxd6 56. Re1+ (56. Rxf5+ $2 {loses.} Ke6 $19) 56... Kc5 57. Rxb1 $16) 56. Ra5 {[%emt 0:01:45]} Ke6 {[%emt 0:04:14] ( -> ...Rh1+)} 57. Re5+ {[%emt 0:02:03]} Kf6 $1 {[%emt 0:00:07][%cal Rb1h1]} 58. Kh3 {[%emt 0:00:05]} Rb5 {[%emt 0:00:44]} 59. Re8 {[%emt 0:00:10]} Rd5 {[%emt 0:01:20]} 60. Ra8 {[%emt 0:01:16]} a5 {[%emt 0:00:24]} 61. Ra6 {[%emt 0:00:59]} Rd7 {[%emt 0:00:48]} 62. Ra8 {[%emt 0:00:09]} Rb7 {[%emt 0:00:34]} 63. Ra6 {[%emt 0:01:26]} Ke6 {[%emt 0:00:22]} 64. Ra8 {[%emt 0:01:35]} Rb4 {[%emt 0:02:05]} 65. Re8+ $2 {[%emt 0:00:26]} (65. Kh4) 65... Kd7 {[%emt 0:02:19]} 66. Re7+ {[%emt 0:00:06]} Kc6 {[%emt 0:00:05]} 67. Rc7+ {[%emt 0:00:50]} Kb5 {[%emt 0:00:26]} 68. Rb7+ {[%emt 0:01:11]} Ka6 {[%emt 0:02:20]} 69. Rxh7 {[%emt 0:00:24] [#]} Rxf4 $1 {[%emt 0:00:57][%mdl 512]} 70. gxf4 {[%emt 0:00:07]} (70. Rc7 Rfd4) 70... Rxd6 {[%emt 0:00:04] KR-KR. Black mates.} 71. Re7 {[%emt 0:01:15]} Rd5 {[%emt 0:03:21]} 72. Kh4 {[%emt 0:00:21]} a4 {[%emt 0:00:12]} 73. Re3 {[%emt 0:00:59]} Kb5 {[%emt 0:00:28]} 74. Kg5 {[%emt 0:00:11]} Kc4 {[%emt 0:00:44]} 75. Kg6 {[%emt 0:00:46]} Ra5 {[%emt 0:00:47] Weighted Error Value: White=0.27 (precise) /Black=0.12 (very precise)} 0-1

[Event "Israeli Championship 2022"]
[Site "Yosiah Arad"]
[Date "2022.12.06"]
[Round "2.3"]
[White "Tzidkiya, Yeshaayahu"]
[Black "Gorodetzky, David"]
[Result "0-1"]
[ECO "C50"]
[WhiteElo "2444"]
[BlackElo "2495"]
[Annotator "TA"]
[PlyCount "68"]
[EventDate "2022.12.05"]
[EventType "swiss"]
[EventCountry "ISR"]
[SourceTitle "playchess.com"]
[Source "ChessBase"]
[SourceQuality "1"]
[TimeControl "40/5400+30:1800+30"]

{[%evp 9,68,10,16,5,12,0,0,0,0,0,0,0,-6,-1,24,6,22,0,0,0,0,0,0,0,0,0,0,0,0,0,0,0,0,-152,0,0,124,141,171,0,0,-9,-13,-241,-8,-154,-160,-474,-457,-610,-624,-860,-852,-860,-860,-846,-836,-853,-839,-810,-708]} 1. e4 {[%emt 0:00:05]} e5 {[%emt 0:00:07]} 2. Nf3 {[%emt 0:00:06]} Nc6 {[%emt 0:00:04]} 3. Bc4 {[%emt 0:00:13]} Bc5 {[%emt 0:00:51]} 4. d3 {[%emt 0:00:16][%cal Bd2d3,Bd3d4][%mdl 32]} Nf6 {[%emt 0:00:24]} 5. Nc3 {[%emt 0:02:14]} a6 {[%emt 0:04:04]} 6. h3 {[%emt 0:02:18] C50: Hungarian Defence and Giuoco Pianissimo.} h6 {[%emt 0:01:19]} 7. Be3 {[%emt 0:08:02]} Bxe3 {[%emt 0:06:09]} 8. fxe3 {[%emt 0:00:06] The position is equal.} d6 {[%emt 0:00:07]} 9. d4 {[%emt 0:06:57]} O-O {[%emt 0:04:36]} 10. O-O {[%emt 0:00:05]} b5 {[%emt 0:03:30]} 11. Bd3 {[%emt 0:03:02] [#]} Bd7 $146 {[%emt 0:22:37]} ({Predecessor:} 11... Re8 12. d5 Ne7 13. Nd2 Rf8 14. Kh2 Bd7 15. a4 Rb8 16. axb5 axb5 17. b4 c6 18. dxc6 Nxc6 {1-0 (44) Sindarov,J (2654)-Nihal,S (2670) Jerusalem 2022}) 12. Qe1 {[%emt 0:20:59]} Re8 {[%emt 0:05:13]} 13. Qf2 {[%emt 0:04:50]} exd4 {[%emt 0:12:37]} 14. exd4 {[%emt 0:07:06]} b4 {[%emt 0:00:35] Prevents a3.} 15. Nd5 {[%emt 0:01:13]} Nxe4 {[%emt 0:06:46]} 16. Bxe4 {[%emt 0:00:56]} Rxe4 {[%emt 0:00:02]} 17. Nd2 {[%emt 0:00:14][%csl LRe4,LRf7]} Rxd4 {[%emt 0:03:53]} 18. Qxf7+ {[%emt 0:11:19]} Kh8 {[%emt 0:00:05]} 19. Nf3 {[%emt 0:00:10]} Re4 {[%emt 0:07:53][%cal Bd4e4,Be4e3,Be3e2,Be2g2,Bg2g4,Bg4h4][%mdl 32]} 20. Nf4 {[%emt 0:00:34] Prevents Be6.} Qe8 $1 {[%emt 0:06:26]} (20... Ne5 $2 21. Nxe5 dxe5 22. Nh5 $18 (22. Ng6+ Kh7 $16)) 21. Ng6+ {[%emt 0:05:04]} Kh7 {[%emt 0:00:02]} 22. Nf8+ $1 {[%emt 0:00:31][%mdl 64] Pair of Knights!} Kh8 {[%emt 0:01:00] [#]} (22... Qxf8 $11 23. Qxd7 Qe8 24. Qxc7 d5) 23. Qd5 $1 $16 {[%emt 0:16:42][%mdl 1024] Nxd7 is the strong threat. White has strong compensation.} (23. Qxd7 $6 Qxd7 24. Nxd7 Rd8 $11) 23... Re3 {[%emt 0:06:37]} 24. Nh4 $2 {[%emt 0:08:24]} ({Only move:} 24. Nxd7 $18 Qxd7 25. Nd4) 24... Ne5 $11 {[%emt 0:02:58]} 25. Qd4 {[%emt 0:01:00]} Re2 $36 {[%emt 0:03:50][%mdl 2048] Hoping for ...Bc6. Black has the initiative.} 26. Rf4 $2 {[%emt 0:00:25]} (26. Rae1 $1 $11 {and White stays safe.} Rxe1 27. Rxe1 Qxf8 28. Rxe5) 26... Qh5 $2 {[%emt 0:00:45]} (26... Rxc2 $2 27. Qe4 $18 (27. Qxb4 Re2 $17) (27. Qxb4 Re2 $17)) ({Black should try} 26... Bc6 $19 27. Raf1 Kg8) 27. Raf1 {[%emt 0:00:35]} (27. Qxb4 $2 {too greedy.} g5 $19) (27. Nxd7 $11 Nxd7 28. Raf1) 27... Bc6 $17 {[%emt 0:00:14] Threatens to win with ...Re8. Dancing on a razor blade. Black is more active.} (27... Rxc2 $2 28. Qe4 $18 (28. Qxb4 Bc6 $11) (28. Qxb4 Bc6 $11)) 28. Ne6 $2 {[%emt 0:00:24] [#]} (28. Qd1 $17 {is more resistant.}) 28... Qxh4 $3 {[%emt 0:00:08][%mdl 512] Black is clearly winning.} 29. Rf8+ {[%emt 0:00:02]} (29. Rxh4 Rxg2+) 29... Kh7 {[%emt 0:00:43]} 30. Qxh4 {[%emt 0:00:27]} Rxg2+ {[%emt 0:00:06]} 31. Kh1 {[%emt 0:00:03]} Rg4+ {[%emt 0:00:51]} 32. Kh2 {[%emt 0:00:12]} Rxh4 {[%emt 0:00:06]} 33. Rxa8 {[%emt 0:00:14]} Bxa8 {[%emt 0:00:02]} 34. Rf8 {[%emt 0:00:08]} Bd5 {[%emt 0:00:29] Weighted Error Value: White=0.56/Black=0.22 (precise)} 0-1